bitfinex-derivatives/quotes_BTCF0:USTF0_20250117
["timestamp","ask_amount","ask_price","bid_price","bid_amount"]
[1737115546298,3.16885509,102390.0,102380.0,0.02305465]
[1737115546508,3.21769509,102390.0,102370.0,0.46853621]
[1737115546809,0.12265388,102380.0,102370.0,0.47647865]
[1737115547402,0.12265388,102380.0,102370.0,0.26223939]
[1737115547602,0.17149788,102380.0,102370.0,0.25247308]
[1737115548808,0.079844,102380.0,102370.0,0.60838542]
[1737115549810,0.079844,102380.0,102370.0,0.60838531]
[1737115550010,0.079844,102380.0,102370.0,0.84262457]
[1737115551111,0.079844,102380.0,102370.0,0.48182457]
[1737115551302,0.17149788,102380.0,102370.0,0.48182457]
[1737115551909,0.17149788,102380.0,102370.0,0.46182472]
[1737115552305,0.17149788,102380.0,102370.0,0.24758546]
[1737115552505,0.17149788,102380.0,102370.0,0.22758546]
[1737115552712,0.17149788,102380.0,102370.0,0.24758546]
[1737115555004,0.17149788,102380.0,102370.0,0.60838546]
[1737115555307,0.18138287,102380.0,102370.0,0.60838546]
[1737115555711,0.18138287,102380.0,102370.0,0.84262472]
[1737115556213,0.18138287,102380.0,102370.0,0.48182472]
[1737115556818,0.18138287,102380.0,102370.0,0.07190182]
[1737115557021,0.18138287,102380.0,102370.0,0.07678953]
[1737115557406,0.21005051,102380.0,102370.0,0.05678953]
[1737115558413,0.57085051,102380.0,102370.0,0.00794253]
[1737115558808,0.57085051,102380.0,102370.0,0.02305482]
[1737115559318,0.57085051,102380.0,102370.0,0.49286458]
[1737115559319,0.14000476,102380.0,102370.0,0.49286458]
[1737115559512,0.14000476,102380.0,102370.0,0.4375917]
[1737115559903,0.14000476,102380.0,102370.0,0.0767917]
[1737115560616,0.56096552,102380.0,102370.0,0.0079427]
[1737115560919,0.14000476,102380.0,102370.0,0.07190382]
[1737115561114,0.14000476,102380.0,102370.0,0.13206458]
[1737115561322,0.14000476,102380.0,102370.0,0.49286458]
[1737115561509,0.079844,102380.0,102370.0,0.49286458]
[1737115561704,2.85840586,102390.0,102380.0,0.048844]
[1737115562017,2.79510586,102390.0,102380.0,0.49285958]
[1737115562410,2.85526662,102390.0,102380.0,0.49285958]
[1737115563211,2.62160809,102390.0,102380.0,0.49285958]
[1737115563413,2.56144733,102390.0,102380.0,0.43269882]
[1737115564011,2.65308204,102390.0,102380.0,0.429644]
[1737115564206,2.65308204,102390.0,102380.0,0.068844]
[1737115564511,2.65308204,102390.0,102380.0,0.4787669]
[1737115565819,2.65308204,102390.0,102380.0,0.24452764]
[1737115567622,3.01388204,102390.0,102380.0,0.24452764]
[1737115568017,2.65308204,102390.0,102380.0,0.24452764]
[1737115568916,2.65308204,102390.0,102380.0,0.24758218]
[1737115569111,2.65308204,102390.0,102380.0,0.2475822]
[1737115569722,2.65308204,102390.0,102380.0,0.24758221]
[1737115570020,2.65308204,102390.0,102380.0,0.84262147]
[1737115570212,2.56144733,102390.0,102380.0,0.84262147]
[1737115570413,2.65308204,102390.0,102380.0,0.84262147]
[1737115571717,2.65308204,102390.0,102380.0,0.84262137]
[1737115572126,2.65308204,102390.0,102380.0,0.43269847]
[1737115572424,2.65308204,102390.0,102380.0,0.07189847]
[1737115573023,2.65308204,102390.0,102380.0,0.43269847]
[1737115573223,2.65308204,102390.0,102380.0,0.07189847]
[1737115575816,2.8579627,102390.0,102380.0,0.07189847]
[1737115576314,2.94959741,102390.0,102380.0,0.07189847]
[1737115576720,2.8579627,102390.0,102380.0,0.07189847]
[1737115579626,2.8579627,102390.0,102380.0,0.24758211]
[1737115580516,2.8579627,102390.0,102380.0,0.60838211]
[1737115580923,2.8579627,102390.0,102380.0,0.24758211]
[1737115581924,2.65308204,102390.0,102380.0,0.24758211]
[1737115585433,2.62160476,102390.0,102380.0,0.24758211]
[1737115586030,2.62160476,102390.0,102380.0,0.24452764]
[1737115586928,2.82648542,102390.0,102380.0,0.068844]
[1737115588340,3.18728542,102390.0,102380.0,0.068844]
[1737115589737,3.24744285,102390.0,102380.0,0.068844]
[1737115590029,3.24744285,102390.0,102380.0,0.02]
[1737115590229,3.30760028,102390.0,102380.0,0.02]
[1737115590436,3.24744285,102390.0,102380.0,0.02]
[1737115593334,3.31051835,102390.0,102380.0,0.02]
[1737115594740,3.31051835,102390.0,102360.0,0.23419136]
[1737115594930,0.50134418,102370.0,102360.0,0.24213442]
[1737115595132,0.50134418,102370.0,102360.0,0.25213442]
[1737115595336,0.50134418,102370.0,102360.0,0.6036126]
[1737115595530,0.14054418,102370.0,102360.0,0.6036126]
[1737115596135,0.14054418,102370.0,102360.0,0.48643315]
[1737115596642,0.080946,102380.0,102370.0,0.048849]
[1737115596834,0.17264118,102380.0,102370.0,0.08370399]
[1737115597034,0.17264118,102380.0,102370.0,0.09370399]
[1737115597234,0.17264118,102380.0,102370.0,0.2694471]
[1737115598847,0.17264118,102380.0,102370.0,0.2376471]
[1737115600435,0.17264118,102380.0,102370.0,0.23764702]
[1737115606445,0.53344118,102380.0,102370.0,0.23764702]
[1737115606651,0.53344118,102380.0,102370.0,0.23764707]
[1737115607039,0.17264118,102380.0,102370.0,0.23764707]
[1737115609550,0.17264118,102380.0,102370.0,0.23459211]
[1737115609849,0.17264118,102380.0,102370.0,0.058849]
[1737115610050,0.17264118,102380.0,102370.0,0.06190396]
[1737115610849,0.17264118,102380.0,102370.0,0.42270396]
[1737115611051,0.17264118,102380.0,102370.0,0.058849]
[1737115611243,0.17264118,102380.0,102370.0,0.06190384]
[1737115611545,0.17264118,102380.0,102370.0,0.42270384]
[1737115611948,0.17264118,102380.0,102370.0,0.058849]
[1737115612342,0.17264118,102380.0,102370.0,0.419649]
[1737115612843,0.17264118,102380.0,102370.0,0.42270379]
[1737115615349,0.37752184,102380.0,102370.0,0.42270379]
[1737115617451,0.37752184,102380.0,102370.0,0.42759146]
[1737115617650,0.37752184,102380.0,102370.0,0.60333457]
[1737115618958,0.37752184,102380.0,102370.0,0.83757383]
[1737115621251,0.17264118,102380.0,102370.0,0.83757383]
[1737115622351,0.53344118,102380.0,102370.0,0.47188616]
[1737115622658,0.56484118,102380.0,102370.0,0.47188616]
[1737115622861,0.20404118,102380.0,102370.0,0.47188616]
[1737115623559,0.20404118,102380.0,102370.0,0.2376469]
[1737115623753,0.56484118,102380.0,102370.0,0.1887979]
[1737115624261,0.56484118,102380.0,102370.0,0.18574311]
[1737115625554,0.56484118,102380.0,102370.0,0.01]
[1737115628062,0.76972184,102380.0,102370.0,0.01]
[1737115629862,0.65712184,102380.0,102370.0,0.01]
[1737115630065,2.74626586,102390.0,102370.0,1.1630122]
[1737115630262,0.09169518,102450.0,102400.0,0.409635]
[1737115630456,0.0301,102450.0,102440.0,0.81329518]
[1737115630660,0.41171889,102460.0,102440.0,0.86210918]
[1737115630963,0.41171889,102460.0,102450.0,0.50130618]
[1737115631365,0.41171889,102460.0,102450.0,0.59300136]
[1737115631666,0.1130726,102460.0,102450.0,0.63266996]
[1737115632165,0.09169518,102490.0,102470.0,0.048801]
[1737115632362,0.09169518,102490.0,102480.0,0.3608]
[1737115632756,0.09169518,102490.0,102470.0,0.409599]
[1737115632956,0.45249518,102490.0,102480.0,0.40627557]
[1737115633166,0.09169518,102490.0,102480.0,0.40627557]
[1737115633466,0.45249518,102490.0,102480.0,0.10611809]
[1737115633670,0.09169518,102490.0,102480.0,0.10611809]
[1737115634164,0.09169518,102490.0,102480.0,0.33827556]
[1737115634661,0.45249518,102490.0,102480.0,0.33827556]
[1737115634859,0.09169518,102490.0,102480.0,0.33827556]
[1737115635166,0.1304,102500.0,102480.0,0.68465265]
[1737115635369,0.1,102500.0,102490.0,0.409592]
[1737115635567,0.1,102500.0,102490.0,0.42484242]
[1737115635762,0.1,102500.0,102490.0,0.51653753]
[1737115636465,0.00146439,102520.0,102510.0,0.048782]
[1737115636676,0.00146439,102520.0,102510.0,0.95377236]
[1737115636873,0.03,102530.0,102520.0,0.14047318]
[1737115637170,0.0306,102550.0,102530.0,0.04877]
[1737115637371,0.0306,102550.0,102540.0,0.45249518]
[1737115637670,0.0306,102550.0,102540.0,0.3608]
[1737115637868,0.48309518,102550.0,102530.0,0.92847709]
[1737115638170,0.3608,102560.0,102530.0,1.02017227]
[1737115638355,0.14046018,102550.0,102530.0,1.37435351]
[1737115638560,0.048768,102540.0,102530.0,1.01355551]
[1737115638759,0.409568,102540.0,102530.0,1.01355551]
[1737115638964,0.409568,102540.0,102530.0,1.10525069]
[1737115639270,0.409568,102540.0,102530.0,0.37101684]
[1737115639665,0.409568,102540.0,102530.0,0.27932166]
[1737115639861,0.048768,102540.0,102530.0,0.27932166]
[1737115640070,0.048768,102540.0,102530.0,0.50126718]
[1737115640268,0.048768,102540.0,102530.0,0.14046718]
[1737115640575,0.048764,102550.0,102540.0,0.048768]
[1737115640760,0.048764,102550.0,102540.0,0.50126318]
[1737115640960,0.048759,102560.0,102550.0,0.048763]
[1737115641157,0.45249518,102560.0,102540.0,0.048768]
[1737115641375,0.14045818,102550.0,102540.0,0.048768]
[1737115641560,0.50125818,102550.0,102540.0,0.048768]
[1737115642073,0.048768,102540.0,102530.0,0.27932166]
[1737115642260,0.18339036,102540.0,102530.0,0.64012166]
[1737115642569,0.18339036,102540.0,102530.0,0.23054966]
[1737115642570,0.23215836,102540.0,102530.0,0.23054966]
[1737115643268,0.14046318,102540.0,102530.0,0.23054966]
[1737115643467,0.23215836,102540.0,102520.0,0.64012566]
[1737115643773,0.09169518,102530.0,102520.0,0.64012566]
[1737115644470,0.09169518,102530.0,102520.0,0.409576]
[1737115644673,0.14046818,102530.0,102520.0,0.409576]
[1737115645167,0.0637,102550.0,102540.0,0.048768]
[1737115645168,0.17305918,102550.0,102540.0,0.048768]
[1737115645371,0.17305918,102550.0,102540.0,0.770368]
[1737115645666,0.14045918,102550.0,102540.0,0.770368]
[1737115645876,0.09169518,102560.0,102550.0,0.048761]
[1737115646073,0.09169518,102560.0,102550.0,0.409561]
[1737115646375,0.14045418,102560.0,102550.0,0.409561]
[1737115647876,0.048759,102560.0,102550.0,0.409561]
[1737115648073,0.14045418,102560.0,102550.0,0.409561]
[1737115648967,0.14045418,102560.0,102550.0,0.048761]
[1737115649365,0.09169518,102560.0,102550.0,0.048761]
[1737115649574,0.048759,102560.0,102550.0,0.409561]
[1737115651181,0.14045418,102560.0,102550.0,0.409561]
[1737115652573,0.14044918,102570.0,102550.0,0.409561]
[1737115653090,0.09169518,102560.0,102550.0,0.409561]
[1737115653581,0.14045418,102560.0,102550.0,0.409561]
[1737115656889,0.14045418,102560.0,102550.0,1.1438063]
[1737115656890,0.09169518,102560.0,102550.0,1.1438063]
[1737115657684,0.14045418,102560.0,102550.0,1.1438063]
[1737115659579,0.14045418,102560.0,102550.0,1.74419967]
[1737115660284,0.14045418,102560.0,102550.0,2.04077558]
[1737115660483,0.14045418,102560.0,102550.0,2.0377259]
[1737115661187,0.14045418,102560.0,102550.0,3.23653624]
[1737115662389,0.14045418,102560.0,102550.0,2.44458174]
[1737115663089,0.09169518,102560.0,102550.0,2.5001441]
[1737115663385,0.048759,102560.0,102550.0,3.23653624]
[1737115663590,0.14045418,102560.0,102550.0,3.23653624]
[1737115664186,0.14045418,102560.0,102550.0,3.23958593]
[1737115664985,0.14045418,102560.0,102550.0,3.19082493]
[1737115666684,0.14045418,102560.0,102550.0,2.45443279]
[1737115667888,0.09169518,102560.0,102550.0,2.45443279]
[1737115668090,0.14045418,102560.0,102550.0,2.09363279]
[1737115668484,0.09169518,102560.0,102550.0,2.0905831]
[1737115668680,0.14045418,102560.0,102550.0,2.0905831]
[1737115668879,0.14045418,102560.0,102550.0,2.03677618]
[1737115669690,0.14045418,102560.0,102550.0,2.03982605]
[1737115669890,0.14045418,102560.0,102550.0,2.87441721]
[1737115670692,0.50125418,102560.0,102550.0,2.87441721]
[1737115671103,0.50125418,102560.0,102550.0,2.09822]
[1737115672198,0.50125418,102560.0,102550.0,2.03983093]
[1737115673396,0.50125418,102560.0,102550.0,2.039831]
[1737115674498,0.50125418,102560.0,102550.0,1.40027586]
[1737115675499,0.50125418,102560.0,102550.0,1.40027585]
[1737115675802,0.14045418,102560.0,102550.0,1.76107585]
[1737115676102,0.048759,102560.0,102550.0,1.8984841]
[1737115676598,0.048759,102560.0,102550.0,1.80678892]
[1737115677299,0.048759,102560.0,102550.0,1.80983844]
[1737115677696,0.15019695,102570.0,102550.0,3.20787892]
[1737115677904,0.15019695,102570.0,102560.0,0.3917]
[1737115678103,0.15019695,102570.0,102560.0,0.39474942]
[1737115678493,0.15019695,102570.0,102560.0,0.35684941]
[1737115679300,0.00974777,102570.0,102560.0,2.44844328]
[1737115679493,0.22005532,102590.0,102560.0,2.58889746]
[1737115679694,0.048749,102580.0,102570.0,0.409553]
[1737115679895,0.14044418,102580.0,102570.0,0.41260248]
[1737115681388,0.14044418,102580.0,102570.0,1.40121224]
[1737115683217,0.14044418,102580.0,102570.0,1.20826174]
[1737115683395,0.14044418,102580.0,102570.0,1.20521226]
[1737115683609,0.14044418,102580.0,102570.0,1.13721225]
[1737115684204,0.14044418,102580.0,102570.0,1.14026127]
[1737115684504,0.14044418,102580.0,102570.0,0.79048988]
[1737115685603,0.14044418,102580.0,102570.0,1.32069304]
[1737115686202,0.14044418,102580.0,102570.0,1.31764402]
[1737115686705,0.14044418,102580.0,102570.0,0.78744086]
[1737115687807,0.14044418,102580.0,102570.0,1.07868727]
[1737115688399,0.14044418,102580.0,102570.0,1.01068726]
[1737115688595,0.14044418,102580.0,102570.0,0.78588728]
[1737115689007,0.14044418,102580.0,102570.0,0.048753]
[1737115691709,0.048749,102580.0,102570.0,0.048753]
[1737115693620,0.18919818,102580.0,102570.0,0.048753]
[1737115693809,0.14044418,102580.0,102570.0,0.048753]
[1737115694711,0.14044418,102580.0,102560.0,0.63549236]
[1737115694909,0.50124918,102570.0,102560.0,0.27469236]
[1737115695111,0.59294436,102570.0,102560.0,0.27469236]
[1737115695311,0.50124918,102570.0,102560.0,0.27469236]
[1737115696413,0.50124918,102570.0,102560.0,0.04175299]
[1737115698710,0.14044918,102570.0,102560.0,0.04175299]
[1737115698905,0.14044918,102570.0,102560.0,0.40255299]
[1737115699208,0.14044918,102570.0,102560.0,0.04175299]
[1737115699404,0.15039146,102570.0,102560.0,0.04175299]
[1737115699910,0.51119146,102570.0,102560.0,0.04175299]
[1737115703909,0.15039146,102570.0,102560.0,0.04175299]
[1737115704117,0.15039146,102570.0,102560.0,0.09039349]
[1737115704519,0.048749,102580.0,102570.0,0.048754]
[1737115704711,0.14044418,102580.0,102570.0,0.442454]
[1737115704908,0.14044418,102580.0,102570.0,0.081654]
[1737115705108,0.15000241,102580.0,102570.0,0.081654]
[1737115706011,0.048754,102570.0,102560.0,0.45119049]
[1737115706216,0.14044918,102570.0,102560.0,0.48139049]
[1737115707718,0.048754,102570.0,102560.0,0.48139049]
[1737115707922,0.048754,102570.0,102560.0,1.21763867]
[1737115709222,0.048754,102570.0,102560.0,1.22068783]
[1737115709721,0.048754,102570.0,102560.0,1.21763867]
[1737115710111,0.048754,102570.0,102560.0,1.22068783]
[1737115710714,0.048754,102570.0,102560.0,1.31238301]
[1737115712123,0.048754,102570.0,102560.0,1.22068783]
[1737115714427,0.048754,102570.0,102560.0,0.48443965]
[1737115714725,0.048754,102570.0,102560.0,0.57613483]
[1737115714919,0.048754,102570.0,102560.0,0.57308567]
[1737115715119,0.048754,102570.0,102560.0,0.48139049]
[1737115720923,0.048754,102570.0,102560.0,0.45119049]
[1737115722013,0.048754,102570.0,102560.0,1.18724925]
[1737115723524,0.048754,102570.0,102560.0,1.19029839]
[1737115725427,0.048754,102570.0,102560.0,1.18724925]
[1737115725733,0.048754,102570.0,102560.0,0.82644925]
[1737115727331,0.048754,102570.0,102560.0,1.42067206]
[1737115727529,0.048754,102570.0,102560.0,1.42372122]
[1737115728532,0.048754,102570.0,102560.0,1.19029841]
[1737115729630,0.048754,102570.0,102560.0,0.45423951]
[1737115729933,0.048754,102570.0,102560.0,0.45119049]
[1737115730632,0.048754,102570.0,102560.0,0.6846282]
[1737115737033,0.048754,102570.0,102560.0,0.68767722]
[1737115737742,0.14044918,102570.0,102560.0,0.28524273]
[1737115738041,0.14044918,102570.0,102560.0,1.3767568]
[1737115738244,0.14044918,102570.0,102560.0,1.37370778]
[1737115739240,0.048754,102570.0,102560.0,0.78578629]
[1737115739747,0.048754,102570.0,102560.0,1.14658629]
[1737115739949,0.048754,102570.0,102560.0,1.14963535]
[1737115740536,0.048754,102570.0,102560.0,1.14658629]
[1737115740742,0.048754,102570.0,102560.0,1.14963543]
[1737115741145,0.048754,102570.0,102560.0,1.14658629]
[1737115741534,0.048754,102570.0,102560.0,1.49615509]
[1737115742148,0.048754,102570.0,102560.0,1.56015509]
[1737115742446,0.048754,102570.0,102560.0,1.56320425]
[1737115742645,0.048754,102570.0,102560.0,1.56015509]
[1737115745048,0.048754,102570.0,102560.0,1.21058629]
[1737115746445,0.048754,102570.0,102560.0,1.56015509]
[1737115747945,0.10869001,102570.0,102560.0,1.56015509]
[1737115748152,0.048754,102570.0,102560.0,1.56015509]
[1737115748350,0.048754,102570.0,102560.0,1.6200911]
[1737115748550,0.10869001,102570.0,102560.0,1.56015509]
[1737115748851,0.10869001,102570.0,102560.0,1.6200911]
[1737115749058,0.048754,102570.0,102560.0,1.6200911]
[1737115749651,0.048754,102570.0,102560.0,1.2705223]
[1737115750152,0.048754,102570.0,102560.0,1.27357143]
[1737115750943,0.048754,102570.0,102560.0,1.62314023]
[1737115751952,0.048754,102570.0,102560.0,1.39102771]
[1737115752147,0.048754,102570.0,102560.0,1.38797858]
[1737115752353,0.05830723,102580.0,102570.0,0.048754]
[1737115752654,0.05830723,102580.0,102570.0,0.46949001]
[1737115752852,0.048749,102580.0,102570.0,0.46949001]
[1737115753059,0.048749,102580.0,102570.0,0.50199001]
[1737115753449,0.048749,102580.0,102570.0,0.43399]
[1737115753756,0.048749,102580.0,102570.0,0.482744]
[1737115753956,0.048749,102580.0,102570.0,0.65786968]
[1737115755559,0.19779445,102590.0,102580.0,0.048749]
[1737115755766,0.13785844,102590.0,102580.0,0.17258501]
[1737115755946,0.19779445,102590.0,102580.0,0.17258501]
[1737115758059,0.19779445,102590.0,102580.0,0.112649]
[1737115758459,0.19779445,102590.0,102580.0,0.104585]
[1737115758663,0.19779445,102590.0,102580.0,0.04464899]
[1737115758862,0.19633099,102590.0,102580.0,0.04464899]
[1737115759160,0.19633099,102590.0,102580.0,0.09339799]
[1737115759566,0.19633099,102590.0,102580.0,0.26852367]
[1737115762558,0.19633099,102590.0,102580.0,0.32845968]
[1737115762865,0.19633099,102590.0,102580.0,0.68925968]
[1737115763265,0.19633099,102590.0,102580.0,0.92279074]
[1737115763473,0.19633099,102590.0,102580.0,0.85479073]
[1737115763969,0.0582453,102590.0,102580.0,0.85479073]
[1737115764170,0.148741,102600.0,102590.0,0.048744]
[1737115764464,0.20867701,102600.0,102590.0,0.080044]
[1737115765171,0.20867701,102600.0,102590.0,0.13998001]
[1737115765754,0.20867701,102600.0,102590.0,0.31510569]
[1737115766259,0.20867701,102600.0,102590.0,0.25516968]
[1737115766463,0.2181921,102600.0,102590.0,0.31510569]
[1737115768166,0.2181921,102600.0,102590.0,0.25516968]
[1737115768679,0.2181921,102600.0,102590.0,0.23591367]
[1737115769665,0.2181921,102600.0,102590.0,0.22386968]
[1737115769867,0.2181921,102600.0,102590.0,0.28380569]
[1737115770854,0.2181921,102600.0,102590.0,0.22386968]
[1737115771060,0.27812811,102600.0,102590.0,0.22386968]
[1737115771266,0.63892811,102600.0,102590.0,0.17512568]
[1737115771461,0.67442811,102600.0,102590.0,0.17512568]
[1737115773674,0.67442811,102600.0,102580.0,0.28227706]
[1737115773866,0.12783601,102590.0,102580.0,0.048746]
[1737115774671,0.17658001,102590.0,102580.0,0.048746]
[1737115774973,0.048749,102580.0,102570.0,0.4193317]
[1737115775163,0.16862102,102580.0,102570.0,0.4193317]
[1737115775358,0.10868501,102580.0,102570.0,0.048751]
[1737115776169,0.048754,102570.0,102560.0,0.23353106]
[1737115776363,0.17579001,102570.0,102560.0,0.23353106]
[1737115776561,0.53659001,102570.0,102560.0,0.23353106]
[1737115776959,0.048759,102560.0,102550.0,0.64309106]
[1737115777171,0.10869501,102560.0,102550.0,0.34222707]
[1737115777668,0.10869501,102560.0,102550.0,0.28229106]
[1737115778367,0.56513102,102560.0,102550.0,0.04876]
[1737115778568,0.56513102,102560.0,102540.0,0.87461464]
[1737115778768,0.10869901,102550.0,102540.0,0.77378271]
[1737115779569,0.10869901,102550.0,102540.0,0.77073307]
[1737115779770,0.10869901,102550.0,102540.0,0.53720201]
[1737115782872,0.10869901,102550.0,102540.0,0.77073307]
[1737115785776,0.10869901,102550.0,102540.0,0.71079706]
[1737115786277,0.10869901,102550.0,102540.0,0.77073307]
[1737115786476,0.10869901,102550.0,102540.0,0.71079706]
[1737115787385,0.10869901,102550.0,102540.0,0.77073307]
[1737115787773,0.10869901,102550.0,102540.0,0.71079706]
[1737115790274,0.0454334,102560.0,102540.0,0.78597925]
[1737115790474,0.17579101,102570.0,102560.0,0.048759]
[1737115790688,0.17579101,102570.0,102560.0,0.46949501]
[1737115792188,0.17579101,102570.0,102560.0,0.409559]
[1737115794388,0.17579101,102570.0,102560.0,0.41907622]
[1737115795079,0.17579101,102570.0,102560.0,0.47901223]
[1737115797089,0.17579101,102570.0,102560.0,0.41907622]
[1737115797683,0.17579101,102570.0,102560.0,0.65260728]
[1737115800991,0.17579101,102570.0,102560.0,0.71254329]
[1737115802481,0.17579101,102570.0,102560.0,1.00445712]
[1737115802688,0.17579101,102570.0,102560.0,0.94452111]
[1737115803185,0.17579101,102570.0,102560.0,1.00445712]
[1737115804894,0.17579101,102570.0,102560.0,0.47901223]
[1737115805393,0.23572702,102570.0,102560.0,0.37031722]
[1737115805690,0.048759,102560.0,102550.0,0.64309106]
[1737115805892,0.10869501,102560.0,102550.0,0.70302707]
[1737115807096,0.10869501,102560.0,102550.0,0.28229106]
[1737115807493,0.10869501,102560.0,102550.0,0.34222707]
[1737115807693,0.10869501,102560.0,102550.0,0.28229106]
[1737115808397,0.10869501,102560.0,102550.0,0.04876]
[1737115809899,0.20683102,102560.0,102550.0,0.04876]
[1737115810792,0.20683102,102560.0,102550.0,0.40956]
[1737115810993,0.12566497,102570.0,102560.0,0.048759]
[1737115811306,0.18560098,102570.0,102560.0,0.048759]
[1737115811604,0.54640098,102570.0,102560.0,0.048759]
[1737115811794,0.53659101,102570.0,102560.0,0.048759]
[1737115813000,0.53659101,102570.0,102560.0,0.28229006]
[1737115816001,0.17579101,102570.0,102560.0,0.64309006]
[1737115817503,0.17579101,102570.0,102560.0,1.38082125]
[1737115818197,0.17579101,102570.0,102560.0,1.44075726]
[1737115819198,0.17579101,102570.0,102560.0,1.38082125]
[1737115819503,0.17579101,102570.0,102560.0,1.07995726]
[1737115819904,0.53659101,102570.0,102560.0,0.10869501]
[1737115820303,0.53659101,102570.0,102560.0,0.048759]
[1737115820505,0.53659101,102570.0,102560.0,0.10869501]
[1737115821004,0.17579101,102570.0,102560.0,0.10869501]
[1737115821206,0.17579101,102570.0,102560.0,0.46949501]
[1737115823101,0.17579101,102570.0,102560.0,0.409559]
[1737115825602,0.17579101,102570.0,102560.0,0.46949501]
[1737115826809,0.17579101,102570.0,102560.0,1.44075696]
[1737115827208,0.17579101,102570.0,102560.0,1.38082095]
[1737115827405,0.17579101,102570.0,102560.0,1.02002095]
[1737115827711,0.17579101,102570.0,102560.0,1.14728989]
[1737115828113,0.17579101,102570.0,102560.0,1.2072259]
[1737115828313,0.17579101,102570.0,102560.0,1.14728989]
[1737115828708,0.17579101,102570.0,102560.0,1.2072259]
[1737115829209,0.17579101,102570.0,102560.0,0.8464259]
[1737115829412,0.53659101,102570.0,102560.0,0.78648989]
[1737115829608,0.53659101,102570.0,102560.0,1.02021805]
[1737115831416,0.17579101,102570.0,102560.0,1.02021805]
[1737115832412,0.17579101,102570.0,102560.0,0.78648989]
[1737115833014,0.17579101,102570.0,102560.0,0.8464259]
[1737115833611,0.17579101,102570.0,102560.0,0.78648989]
[1737115834015,0.17579101,102570.0,102560.0,0.8464259]
[1737115834204,0.17579101,102570.0,102560.0,0.78648989]
[1737115834603,0.53659101,102570.0,102560.0,0.73773089]
[1737115835412,0.59652702,102570.0,102560.0,0.73773089]
[1737115835714,0.59652702,102570.0,102560.0,0.23384441]
[1737115836418,0.17579101,102570.0,102560.0,0.23384441]
[1737115837013,0.53659101,102570.0,102560.0,0.23384441]
[1737115837520,0.17579101,102570.0,102560.0,0.23384441]
[1737115837921,0.17579101,102570.0,102560.0,0.28260341]
[1737115838420,0.17579101,102570.0,102560.0,0.34253942]
[1737115839123,0.17579101,102570.0,102560.0,0.28260341]
[1737115840623,0.53659101,102570.0,102560.0,0.28260341]
[1737115841728,0.17579101,102570.0,102560.0,0.28260341]
[1737115842110,0.17579101,102570.0,102560.0,0.048759]
[1737115843122,0.53659101,102570.0,102560.0,0.048759]
[1737115844726,0.53659101,102570.0,102550.0,0.77488042]
[1737115844923,0.10869501,102560.0,102550.0,0.82364142]
[1737115845631,0.10869501,102560.0,102550.0,0.50799701]
[1737115846211,0.10869501,102560.0,102550.0,0.14719701]
[1737115846716,0.10869501,102560.0,102550.0,0.087261]
[1737115846928,0.10869501,102560.0,102550.0,0.32110541]
[1737115847117,0.10869501,102560.0,102550.0,0.68190541]
[1737115847320,0.10869501,102560.0,102550.0,0.74184142]
[1737115847519,0.10869501,102560.0,102550.0,0.38104142]
[1737115848725,0.10869501,102560.0,102550.0,0.74184142]
[1737115849629,0.10869501,102560.0,102550.0,0.38104142]
[1737115849830,0.10869501,102560.0,102550.0,0.88496544]
[1737115850530,0.10869501,102560.0,102550.0,0.78652943]
[1737115850729,0.10869501,102560.0,102550.0,0.84646544]
[1737115852430,0.10869501,102560.0,102550.0,1.20726544]
[1737115857033,0.10869501,102560.0,102550.0,1.26492041]
[1737115857928,0.048759,102560.0,102550.0,1.26492041]
[1737115858333,0.10869501,102560.0,102550.0,1.26492041]
[1737115858834,0.10869501,102560.0,102550.0,1.38683742]
[1737115860435,0.16863102,102560.0,102550.0,1.13637854]
[1737115860735,0.52943102,102560.0,102550.0,1.13637854]
[1737115860931,0.56823102,102560.0,102550.0,1.13637854]
[1737115861435,0.56823102,102560.0,102550.0,0.78680974]
[1737115862024,0.56823102,102560.0,102550.0,0.73804874]
[1737115862835,0.20743102,102560.0,102550.0,0.73804874]
[1737115863232,0.20743102,102560.0,102550.0,0.78681174]
[1737115863733,0.56823102,102560.0,102550.0,0.78681174]
[1737115864530,0.57800159,102560.0,102550.0,0.73804874]
[1737115865733,0.048763,102550.0,102540.0,0.23380053]
[1737115865933,0.54919901,102550.0,102540.0,0.23380053]
[1737115867239,0.60913502,102550.0,102540.0,0.23380053]
[1737115867832,0.24833502,102550.0,102530.0,0.64337053]
[1737115868035,0.04857057,102560.0,102540.0,0.52944002]
[1737115868234,0.13773601,102570.0,102550.0,0.46949601]
[1737115868635,0.13773601,102570.0,102560.0,0.3608]
[1737115869542,0.14768682,102570.0,102560.0,0.3608]
[1737115871445,0.27044747,102570.0,102560.0,0.3608]
[1737115872636,0.27044747,102570.0,102550.0,0.04876]
[1737115872842,0.17909914,102570.0,102560.0,0.3608]
[1737115873147,0.22785714,102570.0,102560.0,0.3608]
[1737115873345,0.13650881,102570.0,102560.0,0.45214833]
[1737115873538,0.16709666,102580.0,102570.0,0.048754]
[1737115874152,0.25844499,102580.0,102570.0,0.048754]
[1737115874450,0.26835402,102580.0,102570.0,0.048754]
[1737115875940,0.26835402,102580.0,102570.0,0.28222411]
[1737115876448,0.62915402,102580.0,102570.0,0.23347011]
[1737115878250,0.26835402,102580.0,102570.0,0.23347011]
[1737115878444,0.26835402,102580.0,102570.0,0.1654701]
[1737115878642,0.26835402,102580.0,102560.0,0.98906373]
[1737115879746,0.26835402,102580.0,102560.0,0.531756]
[1737115880444,0.26835402,102580.0,102560.0,0.62310433]
[1737115881151,0.048754,102570.0,102560.0,0.62310433]
[1737115881351,0.048754,102570.0,102560.0,0.531756]
[1737115882649,0.048754,102570.0,102560.0,0.170956]
[1737115883354,0.048754,102570.0,102560.0,0.531756]
[1737115884055,0.048754,102570.0,102560.0,0.62310433]
[1737115888558,0.048754,102570.0,102560.0,1.36073632]
[1737115888790,0.048754,102570.0,102560.0,0.99993632]
[1737115888946,0.048754,102570.0,102560.0,0.90858799]
[1737115889567,0.048754,102570.0,102560.0,0.170956]
[1737115891370,0.048754,102570.0,102560.0,0.531756]
[1737115892658,0.14010233,102570.0,102560.0,0.531756]
[1737115892961,0.14010233,102570.0,102560.0,0.170956]
[1737115893165,0.14010233,102570.0,102560.0,0.90860497]
[1737115893166,0.048754,102570.0,102560.0,0.90860497]
[1737115893663,0.048754,102570.0,102560.0,1.26940497]
[1737115894164,0.048754,102570.0,102560.0,0.531756]
[1737115895762,0.048754,102570.0,102560.0,0.70683923]
[1737115896257,0.048754,102570.0,102560.0,0.79818756]
[1737115898064,0.048754,102570.0,102560.0,0.62310433]
[1737115901375,0.048754,102570.0,102560.0,0.5916877]
[1737115902666,0.048754,102570.0,102560.0,0.59473676]
[1737115903169,0.1086857,102570.0,102560.0,0.59473676]
[1737115903374,0.1086857,102570.0,102560.0,1.33236826]